bitfinex/quotes_SOLUSD_20250507
["timestamp","ask_amount","ask_price","bid_price","bid_amount"]
[1746580880466,13.83445575,149.31,149.29,23.43837229]
[1746580880666,137.7,149.32,149.29,23.43837229]
[1746580881084,13.83445575,149.31,149.29,23.43837229]
[1746580881287,13.83445575,149.3,149.29,23.43837229]
[1746580882892,13.83445575,149.3,149.29,28.42884701]
[1746580886387,13.83445575,149.3,149.29,16.74]
[1746580887072,158.23237939,149.3,149.26,16.76]
[1746580887280,13.83445575,149.27,149.26,16.76]
[1746580888489,13.83445575,149.27,149.26,23.45971861]
[1746580896189,13.83445575,149.28,149.26,40.20901513]
[1746580897998,137.7,149.29,149.26,40.20901513]
[1746580898204,13.83445575,149.3,149.27,0.14216157]
[1746580898372,13.83445575,149.29,149.27,0.14216157]
[1746580898876,13.83445575,149.28,149.26,40.20901513]
[1746580899283,13.83445575,149.27,149.26,40.20901513]
[1746580899687,13.83445575,149.27,149.26,28.4416852]
[1746580900088,13.83445575,149.27,149.26,21.74196659]
[1746580900478,13.83445575,149.27,149.26,28.4416852]
[1746580901392,13.83445575,149.27,149.26,23.45971861]
[1746580903107,137.7,149.3,149.26,23.45971861]
[1746580903313,13.83445575,149.27,149.26,23.45971861]
[1746580907297,137.7,149.29,149.26,23.45971861]
[1746580907501,13.83445575,149.28,149.26,23.45971861]
[1746580908708,137.7,149.34,149.26,41.75271513]
[1746580908887,13.83445575,149.32,149.27,0.14216157]
[1746580909089,13.83445575,149.33,149.27,18.79181043]
[1746580909275,137.7,149.34,149.27,18.79181043]
[1746580909476,163.7,149.38,149.27,26.96722168]
[1746580909686,13.83445575,149.36,149.29,18.79181043]
[1746580909888,13.83445575,149.36,149.3,16.56]
[1746580910087,13.83445575,149.36,149.31,16.80216157]
[1746580910301,13.83445575,149.36,149.32,23.43959282]
[1746580910996,13.83445575,149.36,149.33,4.97730995]
[1746580911600,13.83445575,149.35,149.33,4.97730995]
[1746580912706,13.83445575,149.35,149.34,6.69612963]
[1746580914806,13.83445575,149.35,149.32,23.43959282]
[1746580915007,13.83445575,149.36,149.33,0.14216157]
[1746580915201,13.83445575,149.37,149.33,1.74796157]
[1746580915503,151.53445575,149.38,149.33,1.74796157]
[1746580915708,151.53445575,149.38,149.34,4.96263957]
[1746580915890,13.83445575,149.35,149.34,4.96263957]
[1746580916600,13.83445575,149.35,149.32,6.69702652]
[1746580916782,13.83445575,149.33,149.31,23.35731419]
[1746580916983,13.83445575,149.32,149.31,23.35731419]
[1746580917190,13.83445575,149.32,149.31,16.66]
[1746580917401,27.6689115,149.32,149.31,16.66]
[1746580917810,27.6689115,149.32,149.29,16.58]
[1746580918108,13.83445575,149.3,149.29,16.58]
[1746580919701,22.14519669,149.3,149.29,16.58]
[1746580919899,22.14519669,149.31,149.29,16.58]
[1746580920102,22.14519669,149.3,149.29,16.58]
[1746580922612,22.14519669,149.3,149.27,23.35924666]
[1746580922811,22.14519669,149.28,149.27,16.66]
[1746580923016,22.14519669,149.28,149.27,23.35926977]
[1746580923401,22.14519669,149.28,149.27,16.66]
[1746580924316,22.14519669,149.28,149.27,23.35926977]
[1746580925026,22.14519669,149.28,149.27,16.66]
[1746580925995,22.14519669,149.28,149.24,6.70047181]
[1746580926200,22.14519669,149.25,149.24,6.70047181]
[1746580926702,22.14519669,149.25,149.23,23.2409284]
[1746580927013,22.14519669,149.24,149.23,16.54]
[1746580927214,22.14519669,149.24,149.23,23.24098502]
[1746580927719,22.14519669,149.26,149.23,23.24098502]
[1746580927917,22.14519669,149.27,149.23,39.99364869]
[1746580928112,137.7,149.3,149.23,39.99364869]
[1746580928311,22.14519669,149.27,149.23,39.99364869]
[1746580928814,22.14519669,149.26,149.23,39.99364869]
[1746580930808,22.14519669,149.26,149.25,6.7001675]
[1746580931006,22.14519669,149.28,149.25,23.45058626]
[1746580931201,159.84519669,149.3,149.27,0.14216157]
[1746580931401,22.14519669,149.3,149.28,16.54]
[1746580931700,22.14519669,149.31,149.28,16.54]
[1746580931901,163.7,149.35,149.28,16.54]
[1746580932201,22.14519669,149.31,149.28,16.54]
[1746580932797,22.14519669,149.31,149.29,4.96218478]
[1746580933000,22.14519669,149.31,149.3,6.69792364]
[1746580934009,137.7,149.35,149.3,6.69792364]
[1746580934220,22.14519669,149.33,149.31,16.54]
[1746580934924,22.14519669,149.32,149.31,16.54]
[1746580935436,137.7,149.35,149.32,6.69702652]
[1746580935724,22.14519669,149.34,149.33,16.54]
[1746580935898,137.7,149.35,149.33,16.54]
[1746580936099,22.14519669,149.34,149.33,16.54]
[1746580937000,22.14519669,149.34,149.33,23.23657804]
[1746580938230,137.7,149.35,149.33,23.23657804]
[1746580939034,22.14519669,149.36,149.33,39.97802316]
[1746580939426,22.14519669,149.35,149.33,39.97802316]
[1746580939730,22.14519669,149.34,149.33,23.23657804]
[1746580940511,22.14519669,149.34,149.33,16.54]
[1746580941435,144.39490833,149.37,149.33,16.54]
[1746580941611,22.14519669,149.34,149.33,16.54]
[1746580943635,22.14519669,149.34,149.32,23.23669497]
[1746580943833,22.14519669,149.33,149.32,23.23669497]
[1746580945135,137.7,149.37,149.32,23.23669497]
[1746580945342,22.14519669,149.35,149.32,39.97926127]
[1746580945742,22.14519669,149.33,149.32,39.97926127]
[1746580945953,22.14519669,149.33,149.32,23.23669497]
[1746580948113,22.14519669,149.33,149.32,6.69669497]
[1746580948614,22.14519669,149.33,149.31,16.54]
[1746580948821,22.14519669,149.32,149.31,16.54]
[1746580949624,22.14519669,149.32,149.3,6.69778015]
[1746580949838,22.14519669,149.31,149.29,16.54]
[1746580950070,22.14519669,149.3,149.29,33.08]
[1746580950921,22.14519669,149.3,149.29,39.77821778]
[1746580952047,137.7,149.34,149.29,39.77821778]
[1746580952220,22.14519669,149.3,149.29,33.08]
[1746580952534,22.14519669,149.3,149.29,16.54]
[1746580954937,22.14519669,149.3,149.29,23.23837229]
[1746580956439,137.7,149.33,149.29,23.23837229]
[1746580956626,22.14519669,149.3,149.29,23.23837229]
[1746580961141,22.14519669,149.3,149.29,16.54]
[1746580961347,159.84519669,149.3,149.29,16.54]
[1746580961521,159.84519669,149.3,149.27,6.69909227]
[1746580961724,22.14519669,149.28,149.27,6.69909227]
[1746580963848,137.7,149.3,149.27,6.69909227]
[1746580964143,22.14519669,149.29,149.27,6.69909227]
[1746580964332,22.14519669,149.29,149.27,23.23909227]
[1746580966557,22.14519669,149.28,149.27,23.23909227]
[1746580973763,13.83741392,149.28,149.27,23.23909227]
[1746580980092,13.83741392,149.29,149.27,23.23909227]
[1746580983241,13.83741392,149.28,149.27,23.23909227]
[1746580987458,13.83741392,149.29,149.27,39.98726671]
[1746580987768,151.53741392,149.3,149.27,39.98726671]
[1746580988156,13.83741392,149.29,149.27,39.98726671]
[1746580989558,13.83741392,149.28,149.27,23.23909227]
[1746580991573,13.83741392,149.28,149.24,6.70033589]
[1746580991872,13.83741392,149.25,149.23,39.76093122]
[1746580992078,13.83741392,149.24,149.23,23.22093122]
[1746580992257,13.83741392,149.24,149.23,16.52]
[1746580992577,13.83741392,149.24,149.23,23.22106546]
[1746580992748,13.83741392,149.24,149.23,16.52]
[1746580993357,13.83741392,149.24,149.23,23.22106546]
[1746580996260,13.83741392,149.24,149.23,16.52]
[1746580997865,27.67482784,149.24,149.23,16.52]
[1746580998276,144.39945717,149.27,149.23,16.52]
[1746580998463,13.83741392,149.24,149.23,16.52]
[1746580999974,144.39945717,149.27,149.23,16.52]
[1746581000293,13.83741392,149.24,149.23,16.52]
[1746581001778,13.83741392,149.24,149.23,23.22106546]
[1746581001979,137.7,149.26,149.23,23.22106546]
[1746581002179,13.83741392,149.24,149.23,23.22106546]
[1746581003589,13.83741392,149.24,149.23,16.52]
[1746581003788,137.7,149.26,149.23,16.52]
[1746581004085,137.7,149.26,149.23,23.22099591]
[1746581004386,13.83741392,149.24,149.23,23.22099591]
[1746581004685,137.7,149.26,149.23,23.22099591]
[1746581004880,151.53741392,149.26,149.23,23.22099591]
[1746581005183,13.83741392,149.25,149.23,23.22099591]
[1746581006069,13.83741392,149.24,149.23,23.22099591]
[1746581007584,13.83741392,149.25,149.23,23.22099591]
[1746581010692,137.7,149.26,149.23,23.22099591]
[1746581010693,151.53741392,149.26,149.23,39.97365958]
[1746581010871,137.7,149.26,149.23,39.97365958]
[1746581011566,137.7,149.26,149.25,0.14216157]
[1746581011780,13.83741392,149.3,149.25,16.68216157]
[1746581013493,13.83741392,149.3,149.26,6.69971861]
[1746581013672,13.83741392,149.29,149.26,6.69971861]
[1746581014794,13.83741392,149.29,149.26,23.44901513]
[1746581014988,13.83741392,149.31,149.26,23.44901513]
[1746581015167,13.83741392,149.29,149.26,23.44901513]
[1746581015368,13.83741392,149.28,149.26,23.44901513]
[1746581015994,13.83741392,149.27,149.24,6.70061645]
[1746581016291,13.83741392,149.25,149.24,23.22061645]
[1746581016582,137.7,149.3,149.24,23.22061645]
[1746581016793,13.83741392,149.25,149.24,23.22061645]
[1746581017991,13.83741392,149.26,149.24,23.22061645]
[1746581020096,13.83741392,149.26,149.24,6.70061645]
[1746581020275,13.83741392,149.26,149.24,23.22061645]
[1746581020791,13.83741392,149.25,149.24,23.22061645]
[1746581022088,13.83741392,149.25,149.23,23.22089824]
[1746581022286,13.83741392,149.24,149.23,23.22089824]
[1746581022787,13.83741392,149.24,149.23,16.52]
[1746581023195,13.83741392,149.24,149.23,23.22106546]
[1746581027997,13.83741392,149.24,149.23,16.52]
[1746581029000,13.83741392,149.24,149.23,23.22106546]
[1746581033909,13.83741392,149.24,149.23,16.52]
[1746581035201,13.83741392,149.24,149.22,6.70147752]
[1746581035494,13.83741392,149.23,149.22,6.70147752]
[1746581036220,6.69946537,149.27,149.21,6.70196367]
[1746581036390,13.83741392,149.22,149.21,6.70196367]
[1746581037812,13.83741392,149.22,149.18,16.75822339]
[1746581038005,137.7,149.23,149.19,6.70286212]
[1746581038313,13.83741392,149.2,149.19,6.70286212]
[1746581038506,13.83741392,149.2,149.18,16.52]
[1746581038704,13.83741392,149.19,149.18,16.52]
[1746581039003,13.83741392,149.19,149.18,23.22331143]
[1746581040213,137.7,149.22,149.18,23.22331143]
[1746581040597,13.83741392,149.21,149.18,23.22331143]
[1746581040797,13.83741392,149.21,149.18,39.98159001]
[1746581041718,13.83741392,149.2,149.18,39.98159001]
[1746581042110,13.83741392,149.21,149.18,39.98159001]
[1746581042411,13.83741392,149.2,149.18,23.46159001]
[1746581042627,13.83741392,149.21,149.19,16.52]
[1746581043117,137.7,149.22,149.19,16.52]
[1746581043298,151.53741392,149.22,149.19,16.52]
[1746581044128,137.7,149.22,149.2,6.70241286]
[1746581044427,25.34821403,149.29,149.2,6.70241286]
[1746581044428,137.7,149.28,149.21,16.52]
[1746581044616,13.83741392,149.26,149.21,18.0872]
[1746581044815,137.7,149.27,149.22,0.14216157]
[1746581045021,137.7,149.27,149.22,18.79181043]
[1746581045212,13.83741392,149.28,149.22,18.79181043]
[1746581045524,13.83741392,149.3,149.22,18.79181043]
[1746581045830,26.0,149.28,149.21,18.0872]
[1746581046014,13.83741392,149.22,149.21,18.0872]
[1746581046327,13.83741392,149.24,149.22,6.70151454]
[1746581046625,13.83741392,149.23,149.22,6.70151454]
[1746581046932,13.83741392,149.24,149.22,6.70151454]
[1746581047226,13.83741392,149.23,149.22,6.70151454]
[1746581047424,13.83741392,149.23,149.21,23.22184791]
[1746581047647,13.83741392,149.22,149.21,23.22184791]
[1746581048204,13.83741392,149.22,149.21,19.42597591]
[1746581050610,13.83741392,149.22,149.21,12.724128]
[1746581051214,13.83741392,149.22,149.21,19.42609167]
[1746581053634,13.83741392,149.22,149.21,12.724128]
[1746581055425,151.53741392,149.24,149.21,12.724128]
[1746581055629,137.7,149.24,149.21,12.724128]
[1746581055831,137.7,149.24,149.21,19.42590868]
[1746581056015,151.53741392,149.24,149.21,19.42590868]
[1746581056221,13.83741392,149.23,149.21,19.42590868]
[1746581056416,13.83741392,149.22,149.21,12.724128]
[1746581056613,13.83741392,149.22,149.21,19.42609167]
[1746581057011,137.7,149.24,149.21,19.42609167]
[1746581057211,13.83741392,149.22,149.21,19.42609167]
[1746581058533,137.7,149.24,149.21,19.42609167]
[1746581059134,137.7,149.24,149.21,36.18100085]
[1746581059343,137.7,149.29,149.22,0.14216157]
[1746581059540,137.7,149.29,149.23,1.5022]
[1746581059838,137.7,149.33,149.24,16.66216157]
[1746581060037,137.7,149.33,149.25,18.64964886]
[1746581060239,13.83741392,149.32,149.27,0.14216157]
[1746581060435,13.83741392,149.31,149.27,0.14216157]
[1746581060635,13.83741392,149.31,149.28,6.698821]
[1746581060942,13.83741392,149.31,149.29,16.56]
[1746581061436,13.83741392,149.3,149.29,16.56]
[1746581061644,13.83741392,149.3,149.27,23.25914717]
[1746581061939,13.83741392,149.29,149.27,23.25914717]
[1746581062136,13.83741392,149.28,149.27,23.25914717]
[1746581063850,137.7,149.33,149.27,23.25914717]
[1746581064143,13.83741392,149.29,149.27,23.25914717]
[1746581064522,13.83741392,149.28,149.27,23.25914717]
[1746581064722,13.83741392,149.29,149.27,23.25914717]
[1746581065342,13.83741392,149.28,149.27,23.25914717]
[1746581065723,13.83741392,149.29,149.27,23.25914717]
[1746581067343,13.83741392,149.28,149.27,6.69914717]
[1746581067529,13.83741392,149.28,149.26,16.5]
[1746581067723,13.83741392,149.27,149.26,16.5]
[1746581072448,163.7,149.29,149.26,16.5]
[1746581072742,13.83741392,149.27,149.26,16.5]
[1746581073246,13.83741392,149.27,149.26,23.19971861]
[1746581074054,13.83741392,149.27,149.26,16.5]
[1746581078759,20.53669877,149.27,149.23,16.62]
[1746581078936,13.83741392,149.24,149.22,16.6]
[1746581079259,13.83741392,149.23,149.22,16.6]
[1746581080042,13.83741392,149.23,149.22,23.30151454]
[1746581080368,137.7,149.25,149.22,23.30151454]
[1746581080739,13.83741392,149.24,149.22,23.30151454]
[1746581081347,13.83741392,149.23,149.22,23.30151454]
[1746581083755,13.83741392,149.24,149.22,23.30151454]
[1746581084543,13.83741392,149.25,149.22,40.05530089]
[1746581085367,13.83741392,149.24,149.22,40.05530089]
[1746581086854,137.7,149.28,149.22,40.05530089]
[1746581087055,13.83741392,149.26,149.23,0.14216157]
[1746581088863,13.83741392,149.26,149.24,6.70061645]
[1746581089358,13.83741392,149.25,149.24,6.70061645]
[1746581092359,13.83741392,149.26,149.24,6.70061645]
[1746581093663,26.0,149.28,149.24,6.70061645]
[1746581093843,13.83741392,149.26,149.24,6.70061645]
[1746581096359,13.83741392,149.26,149.25,16.6]
[1746581097982,151.53741392,149.31,149.25,16.6]
[1746581098150,13.83741392,149.3,149.26,18.1607]
[1746581098547,13.83741392,149.29,149.27,6.69926977]
[1746581098853,13.83741392,149.28,149.26,23.2997056]
[1746581099060,13.83741392,149.27,149.26,23.2997056]
[1746581102563,137.7,149.3,149.26,23.2997056]
[1746581102763,13.83741392,149.27,149.26,23.2997056]
[1746581102962,137.7,149.3,149.26,23.2997056]
[1746581103451,137.7,149.3,149.28,1.6628]
[1746581104283,151.53741392,149.3,149.28,1.6628]
[1746581104974,13.83741392,149.32,149.29,6.69837229]
[1746581105275,13.83741392,149.31,149.3,16.6]
[1746581105859,137.7,149.35,149.3,16.6]
[1746581106061,13.83741392,149.33,149.31,16.62]
[1746581107276,13.83741392,149.34,149.32,6.69702652]
[1746581107481,13.33741392,149.34,149.32,6.69702652]
[1746581107654,13.83741392,149.33,149.32,6.69702652]
[1746581108275,13.83741392,149.34,149.32,6.69702652]
[1746581108881,13.83741392,149.33,149.32,6.69702652]
[1746581109983,13.83741392,149.34,149.32,6.69702652]
[1746581110878,137.7,149.39,149.32,23.43959282]
[1746581111080,137.7,149.39,149.33,0.14216157]
[1746581111259,13.83741392,149.37,149.33,0.14216157]
[1746581111459,13.83741392,149.37,149.34,6.69612963]
[1746581111660,13.83741392,149.37,149.35,16.58]
[1746581111863,13.83741392,149.37,149.36,16.58]
[1746581112067,13.83741392,149.38,149.36,16.58]
[1746581112598,137.7,149.42,149.36,16.58]
[1746581112755,137.7,149.42,149.37,0.14216157]
[1746581113094,13.83741392,149.39,149.37,0.14216157]
[1746581113285,137.7,149.42,149.36,16.58]
[1746581113286,13.83741392,149.38,149.36,16.58]
[1746581113463,13.83741392,149.37,149.36,23.27523299]
[1746581114163,13.83741392,149.37,149.34,6.69575122]
[1746581114363,13.83741392,149.35,149.34,6.69575122]
[1746581114569,32.1633,149.4,149.34,6.69575122]
[1746581114773,13.83741392,149.35,149.34,6.69575122]
[1746581115781,137.7,149.39,149.33,6.69657804]
[1746581115961,13.83741392,149.36,149.33,6.69657804]
[1746581116863,137.7,149.38,149.33,23.43802316]
[1746581117377,13.83741392,149.37,149.33,23.43802316]
[1746581117578,13.83741392,149.36,149.33,23.43802316]
[1746581120976,13.83741392,149.35,149.33,23.43802316]
[1746581121788,13.83741392,149.36,149.33,23.43802316]
[1746581122586,13.83741392,149.37,149.35,6.69568128]
[1746581122892,13.83741392,149.37,149.36,16.58]
[1746581124073,13.83741392,149.37,149.35,6.69568128]
[1746581124283,137.7,149.38,149.36,16.56]
[1746581124577,13.83741392,149.37,149.36,16.56]
[1746581125791,137.7,149.38,149.37,6.69478476]
[1746581125994,151.53741392,149.38,149.37,6.69478476]
[1746581127481,26.0,149.42,149.37,6.69478476]
[1746581127798,13.83741392,149.39,149.37,23.25478476]
[1746581128702,137.7,149.43,149.37,23.25478476]
[1746581128873,13.83741392,149.41,149.37,39.99174666]
[1746581131088,13.83741392,149.4,149.37,39.99174666]
[1746581131483,13.83741392,149.39,149.37,39.99174666]
[1746581131795,13.83741392,149.39,149.37,23.25478476]
[1746581139210,137.7,149.43,149.37,23.25478476]
[1746581139404,13.83741392,149.39,149.37,23.25478476]
[1746581141207,13.83741392,149.4,149.37,39.99174666]
[1746581142510,13.83741392,149.41,149.37,39.99174666]
[1746581142824,137.7,149.43,149.39,6.69388847]
[1746581142989,13.83741392,149.43,149.4,0.14216157]
[1746581143189,13.83741392,149.42,149.41,16.5]
[1746581144912,13.83741392,149.42,149.41,23.19299243]
[1746581146406,13.83741392,149.43,149.41,23.19299243]
[1746581146611,13.83741392,149.43,149.42,16.5]
[1746581147410,13.83741392,149.43,149.42,23.1925445]
[1746581147611,26.0,149.46,149.42,23.1925445]
[1746581147814,13.83741392,149.43,149.42,23.1925445]
[1746581156314,13.83741392,149.43,149.42,16.5]
[1746581158333,13.83741392,149.43,149.42,23.1925445]
[1746581159111,26.0,149.46,149.42,23.1925445]
[1746581159312,13.83741392,149.43,149.42,23.1925445]
[1746581162330,13.83741392,149.45,149.42,23.1925445]
[1746581162514,13.83741392,149.43,149.42,23.1925445]
[1746581164631,13.83741392,149.43,149.38,33.0]
[1746581164833,13.83741392,149.39,149.38,33.0]
[1746581166014,13.83741392,149.39,149.38,39.69433659]
[1746581166944,13.83741392,149.39,149.38,23.19433659]
[1746581167142,137.7,149.38,149.33,6.69657804]
[1746581167325,13.83741392,149.34,149.33,6.69657804]
[1746581167640,13.83741392,149.34,149.32,267.4]
[1746581167641,13.83741392,149.34,149.32,16.5]
[1746581167820,13.83741392,149.33,149.32,16.5]
[1746581173150,137.7,149.36,149.32,23.19690251]
[1746581173451,13.83741392,149.35,149.32,23.19690251]
[1746581173658,13.83741392,149.34,149.32,23.19690251]
[1746581174333,137.7,149.36,149.32,23.19690251]
[1746581174535,13.83741392,149.34,149.32,23.19690251]
[1746581175529,137.7,149.36,149.32,23.19690251]
[1746581175733,13.83741392,149.35,149.32,23.19690251]
[1746581176057,13.83741392,149.34,149.32,23.19690251]
[1746581176459,137.7,149.36,149.32,23.19690251]
[1746581176752,13.83741392,149.35,149.32,23.19690251]
[1746581177450,13.83741392,149.34,149.32,23.19690251]
[1746581178157,13.83741392,149.33,149.32,23.19690251]
[1746581178725,137.7,149.36,149.32,23.19690251]
[1746581179033,13.83741392,149.34,149.32,23.19690251]
[1746581179239,137.7,149.36,149.32,23.19690251]
[1746581179449,13.83741392,149.34,149.32,23.19690251]
[1746581179955,137.7,149.36,149.32,23.19690251]
[1746581180260,13.83741392,149.35,149.32,23.19690251]
[1746581181335,13.83741392,149.34,149.32,23.19690251]
[1746581184668,137.7,149.36,149.32,41.57636881]
[1746581184829,26.0,149.4,149.33,0.14216157]
[1746581185033,13.83741392,149.39,149.33,0.14216157]
[1746581185568,13.83741392,149.37,149.32,41.57636881]
[1746581185748,13.83741392,149.36,149.32,41.57636881]
[1746581186154,13.83741392,149.37,149.32,41.57636881]
[1746581186669,13.83741392,149.36,149.32,41.57636881]
[1746581188859,13.83741392,149.35,149.32,41.57636881]
[1746581189359,13.83741392,149.34,149.32,23.19690251]
[1746581189549,13.83741392,149.33,149.32,23.19690251]
[1746581190350,13.83741392,149.34,149.32,23.19690251]
[1746581190554,13.83741392,149.35,149.32,23.19690251]
[1746581190948,13.83741392,149.34,149.32,23.19690251]
[1746581191562,137.7,149.37,149.32,23.19690251]
[1746581191749,13.83741392,149.35,149.32,23.19690251]
[1746581193063,13.83741392,149.34,149.32,23.19690251]
[1746581193966,13.83741392,149.33,149.32,23.19690251]
[1746581194157,13.83741392,149.34,149.32,23.19690251]
[1746581194472,137.7,149.36,149.32,23.19690251]
[1746581194655,13.83741392,149.34,149.32,23.19690251]
[1746581198456,151.53741392,149.33,149.3,6.69792364]
[1746581198770,13.83741392,149.31,149.3,6.69792364]
[1746581199360,13.83741392,149.31,149.27,6.69926977]
[1746581199557,13.83741392,149.3,149.27,6.69926977]
[1746581201137,13.83741392,149.29,149.27,6.69926977]
[1746581204968,13.83741392,149.3,149.27,6.69926977]
[1746581205177,13.83741392,149.3,149.27,23.44744421]
[1746581207061,137.7,149.32,149.27,23.44744421]
[1746581207268,13.83741392,149.3,149.27,23.44744421]
[1746581208551,13.83741392,149.3,149.27,39.94744421]
[1746581209458,13.83741392,149.29,149.27,39.94744421]
[1746581210170,13.83741392,149.29,149.27,23.19926977]
[1746581213167,144.39705007,149.32,149.27,23.19926977]
[1746581213168,13.83741392,149.28,149.27,6.69926977]
[1746581219382,13.83741392,149.28,149.26,23.19955952]
[1746581219590,13.83741392,149.27,149.26,23.19955952]
[1746581220361,13.83741392,149.28,149.26,23.19955952]
[1746581221798,13.83741392,149.27,149.26,16.5]
[1746581222159,13.83741392,149.27,149.26,23.19971861]
[1746581222360,13.83741392,149.27,149.26,16.5]
[1746581224972,13.83741392,149.27,149.24,6.70047734]
[1746581225168,13.83741392,149.25,149.22,23.20140546]
[1746581225483,13.83741392,149.23,149.22,16.5]
[1746581225682,151.53741392,149.23,149.22,16.5]
[1746581225865,137.7,149.23,149.22,16.5]
[1746581226066,151.53741392,149.23,149.22,16.5]
[1746581226466,151.53741392,149.23,149.22,23.20151454]
[1746581227488,137.7,149.23,149.22,23.20151454]
[1746581227799,151.53741392,149.23,149.22,23.20151454]
[1746581229690,151.53741392,149.23,149.22,16.5]
[1746581230486,151.53741392,149.23,149.21,6.70184783]
[1746581230792,13.83741392,149.22,149.19,6.70286212]
[1746581230991,13.83741392,149.21,149.19,6.70286212]
[1746581232070,151.53741392,149.2,149.19,6.70286212]
[1746581232595,137.7,149.2,149.19,6.70286212]
[1746581232800,151.53741392,149.2,149.17,6.7037608]
[1746581233794,13.83741392,149.18,149.17,6.7037608]
[1746581234902,13.83741392,149.18,149.16,16.5]
[1746581235079,13.83741392,149.17,149.16,23.20419108]
[1746581235595,137.7,149.19,149.16,23.20419108]
[1746581235777,13.83741392,149.17,149.16,23.20419108]
[1746581236096,13.83741392,149.17,149.16,16.5]
[1746581236398,13.83741392,149.17,149.16,23.20421024]
[1746581236585,13.83741392,149.17,149.16,16.5]
[1746581236900,13.83741392,149.17,149.16,23.20421024]
[1746581238383,137.7,149.19,149.16,23.20421024]
[1746581238589,13.83741392,149.18,149.16,23.20421024]
[1746581238999,151.53741392,149.19,149.16,23.20421024]
[1746581239178,137.7,149.19,149.16,23.20421024]
[1746581239595,151.53741392,149.19,149.16,23.20421024]
[1746581239978,137.7,149.19,149.16,39.96473585]
[1746581240778,151.53741392,149.19,149.16,39.96473585]
[1746581241475,137.7,149.19,149.16,39.96473585]
[1746581242184,13.83741392,149.22,149.17,1.6264]
[1746581242385,13.83741392,149.22,149.18,16.5]
[1746581242794,151.53741392,149.23,149.18,16.5]
[1746581243389,13.83741392,149.22,149.19,6.70286212]
[1746581244802,151.53741392,149.23,149.19,6.70286212]
[1746581245104,137.7,149.23,149.19,6.70286212]
[1746581245289,13.83741392,149.22,149.19,6.70286212]
[1746581246105,151.53741392,149.23,149.19,23.46001742]
[1746581247108,137.7,149.23,149.19,23.46001742]
[1746581247293,151.53741392,149.23,149.19,23.46001742]
[1746581247483,137.7,149.23,149.19,23.46001742]
[1746581249411,151.53741392,149.23,149.19,23.46001742]
[1746581250591,137.7,149.23,149.19,23.46001742]
[1746581250909,18.22012361,149.3,149.2,0.14216157]
[1746581250910,13.83741392,149.26,149.2,0.14216157]
[1746581251128,13.83741392,149.26,149.21,16.5]
[1746581251304,137.7,149.28,149.21,16.5]
[1746581251626,13.83741392,149.24,149.21,16.5]
[1746581251783,13.83741392,149.24,149.22,6.70151454]
[1746581255720,137.7,149.27,149.22,6.70151454]
[1746581255920,13.83741392,149.25,149.22,6.70151454]
[1746581256125,137.7,149.27,149.22,6.70151454]
[1746581256310,13.83741392,149.26,149.22,6.70151454]
[1746581257124,13.83741392,149.26,149.22,23.45530089]
[1746581257422,137.7,149.27,149.24,6.70061645]
[1746581257616,151.53741392,149.27,149.24,6.70061645]
[1746581258098,13.83741392,149.26,149.24,6.70061645]
[1746581260720,137.7,149.27,149.24,6.70061645]
[1746581261032,151.53741392,149.27,149.24,6.70061645]
[1746581262519,137.7,149.27,149.24,6.70061645]
[1746581262833,151.53741392,149.27,149.24,6.70061645]
[1746581263524,137.7,149.27,149.24,6.70061645]
[1746581264623,137.7,149.27,149.24,23.45215759]
[1746581277316,137.7,149.27,149.25,16.48]
[1746581278142,137.7,149.27,149.26,6.69971861]
[1746581282325,13.83741392,149.29,149.26,6.69971861]
[1746581282641,13.83741392,149.3,149.26,6.69971861]
[1746581283314,137.7,149.31,149.26,6.69971861]
[1746581283518,151.53741392,149.31,149.26,6.69971861]
[1746581283718,13.83741392,149.29,149.26,6.69971861]
[1746581283919,13.83741392,149.28,149.26,6.69971861]
[1746581286146,137.7,149.31,149.26,6.69971861]
[1746581286439,151.53741392,149.31,149.26,6.69971861]
[1746581287235,151.53741392,149.31,149.26,23.44901513]
[1746581287550,13.83741392,149.31,149.26,23.44901513]
[1746581287745,39.83741392,149.32,149.26,23.44901513]
[1746581289242,13.83741392,149.31,149.26,23.44901513]
[1746581289444,13.83741392,149.33,149.27,0.14216157]
[1746581289626,177.53741392,149.34,149.27,1.71086157]
[1746581289827,13.83741392,149.33,149.27,1.71086157]
[1746581290754,13.83741392,149.33,149.28,6.698821]
[1746581290949,137.7,149.34,149.28,23.44587351]
[1746581291145,137.7,149.34,149.29,0.14216157]